[Event "Late-Titled-Tuesday-Blitz-May-07-2024"]
[Site "Chess.com"]
[Date "2024.05.07"]
[Round "7"]
[White "ImportedItalianMaple"]
[Black "azikom"]
[Result "1-0"]
[WhiteElo "2541"]
[BlackElo "2732"]
[TimeControl "180+1"]
[EndTime "15:17:26 PDT"]
[Termination "ImportedItalianMaple won on time"]

1. e4 {[%clk 0:03:00.9]} 1... c6 {[%clk 0:03:00.3]} 2. d4 {[%clk 0:02:57.7]}
2... d5 {[%clk 0:03:01.2]} 3. e5 {[%clk 0:02:57.8]} 3... Bf5 {[%clk 0:03:00.9]}
4. Nd2 {[%clk 0:02:57.2]} 4... e6 {[%clk 0:02:58.7]} 5. Nb3 {[%clk 0:02:57.6]}
5... a5 {[%clk 0:02:56.9]} 6. a4 {[%clk 0:02:57.5]} 6... Nd7 {[%clk 0:02:53.9]}
7. Nf3 {[%clk 0:02:57]} 7... Ne7 {[%clk 0:02:48.5]} 8. Be2 {[%clk 0:02:55.4]}
8... h6 {[%clk 0:02:43.8]} 9. O-O {[%clk 0:02:54.2]} 9... Bh7 {[%clk 0:02:41.6]}
10. Ne1 {[%clk 0:02:35.5]} 10... Nc8 {[%clk 0:02:37]} 11. Bd3 {[%clk 0:02:34.4]}
11... Bxd3 {[%clk 0:02:30.9]} 12. Nxd3 {[%clk 0:02:35.3]} 12... Be7 {[%clk
0:02:22.1]} 13. f4 {[%clk 0:02:33.7]} 13... O-O {[%clk 0:02:15]} 14. f5 {[%clk
0:02:29.3]} 14... exf5 {[%clk 0:02:14.7]} 15. Rxf5 {[%clk 0:02:29.9]} 15... Qe8
{[%clk 0:01:30.5]} 16. Qg4 {[%clk 0:02:09.7]} 16... Kh7 {[%clk 0:01:29.7]} 17.
Be3 {[%clk 0:01:48.3]} 17... f6 {[%clk 0:01:27.9]} 18. Raf1 {[%clk 0:01:46.2]}
18... fxe5 {[%clk 0:01:21.8]} 19. Rxf8 {[%clk 0:01:45.2]} 19... Bxf8 {[%clk
0:01:09.7]} 20. dxe5 {[%clk 0:01:30.2]} 20... Ne7 {[%clk 0:00:59.5]} 21. Nd4
{[%clk 0:01:15.6]} 21... Ng6 {[%clk 0:00:58.5]} 22. Ne6 {[%clk 0:00:54.5]} 22...
Qe7 {[%clk 0:00:57.1]} 23. Qf5 {[%clk 0:00:49.2]} 23... Re8 {[%clk 0:00:44.8]}
24. Nef4 {[%clk 0:00:20.3]} 24... Nxe5 {[%clk 0:00:14]} 25. Nxe5 {[%clk
0:00:18.6]} 25... Qxe5 {[%clk 0:00:14.4]} 26. Qxg6+ {[%clk 0:00:18.2]} 26... Kg8
{[%clk 0:00:13.7]} 27. Bd2 {[%clk 0:00:15.7]} 27... Qe4 {[%clk 0:00:13]} 28. Kh1
{[%clk 0:00:15.3]} 28... Qxg6 {[%clk 0:00:11.8]} 29. Nxg6 {[%clk 0:00:15.3]}
29... Bb4 {[%clk 0:00:12.3]} 30. c3 {[%clk 0:00:14.3]} 30... Bd6 {[%clk
0:00:11.8]} 31. Re1 {[%clk 0:00:14.4]} 31... Ra8 {[%clk 0:00:09.8]} 32. Nf4
{[%clk 0:00:13.6]} 32... Rf8 {[%clk 0:00:08.7]} 33. Nd3 {[%clk 0:00:13.4]} 33...
Rf5 {[%clk 0:00:07.7]} 34. g3 {[%clk 0:00:13.7]} 34... Rf3 {[%clk 0:00:07]} 35.
Nf4 {[%clk 0:00:11.6]} 35... Bxf4 {[%clk 0:00:05.8]} 36. Bxf4 {[%clk 0:00:11.4]}
36... Rf2 {[%clk 0:00:06.2]} 37. Bc1 {[%clk 0:00:11.1]} 37... Rc2 {[%clk
0:00:05.4]} 38. Kg1 {[%clk 0:00:11.4]} 38... Kf7 {[%clk 0:00:05.4]} 39. Rf1+
{[%clk 0:00:09.7]} 39... Ke6 {[%clk 0:00:04.6]} 40. b4 {[%clk 0:00:07.7]} 40...
Rxc3 {[%clk 0:00:03.9]} 41. Bb2 {[%clk 0:00:07.4]} 41... Rb3 {[%clk 0:00:03.1]}
42. Bxg7 {[%clk 0:00:08]} 42... h5 {[%clk 0:00:03.2]} 43. bxa5 {[%clk
0:00:07.9]} 43... c5 {[%clk 0:00:03.4]} 44. Rf6+ {[%clk 0:00:06.8]} 44... Ke7
{[%clk 0:00:01.6]} 45. Rb6 {[%clk 0:00:07.5]} 1-0

[Event "Late-Titled-Tuesday-Blitz-May-07-2024"]
[Site "Chess.com"]
[Date "2024.05.07"]
[Round "7"]
[White "Balla_Tamas"]
[Black "Fins0905"]
[Result "0-1"]
[WhiteElo "2523"]
[BlackElo "2732"]
[TimeControl "180+1"]
[EndTime "15:17:35 PDT"]
[Termination "Fins0905 won by resignation"]

1. e4 {[%clk 0:03:00.9]} 1... d5 {[%clk 0:02:56.3]} 2. exd5 {[%clk 0:02:57.3]}
2... Qxd5 {[%clk 0:02:55.5]} 3. Nc3 {[%clk 0:02:57.2]} 3... Qa5 {[%clk
0:02:55.6]} 4. d4 {[%clk 0:02:56.1]} 4... Nf6 {[%clk 0:02:55.5]} 5. Bc4 {[%clk
0:02:56]} 5... Bg4 {[%clk 0:02:54.7]} 6. f3 {[%clk 0:02:53.4]} 6... Bd7 {[%clk
0:02:54.3]} 7. Bd2 {[%clk 0:02:47.3]} 7... Qb6 {[%clk 0:02:52.1]} 8. Nge2 {[%clk
0:02:42.3]} 8... e6 {[%clk 0:02:49]} 9. O-O {[%clk 0:02:33.1]} 9... Be7 {[%clk
0:02:48.6]} 10. Kh1 {[%clk 0:02:32.6]} 10... O-O {[%clk 0:02:45.2]} 11. Bb3
{[%clk 0:02:30.3]} 11... c5 {[%clk 0:02:37.4]} 12. dxc5 {[%clk 0:02:22.7]} 12...
Bxc5 {[%clk 0:02:34.6]} 13. Ng3 {[%clk 0:02:22.4]} 13... Rd8 {[%clk 0:02:25.6]}
14. Nge4 {[%clk 0:02:14]} 14... Nxe4 {[%clk 0:02:22.1]} 15. Nxe4 {[%clk
0:02:09]} 15... Be7 {[%clk 0:02:19.1]} 16. Qe1 {[%clk 0:02:01.8]} 16... Nc6
{[%clk 0:02:14.4]} 17. Bc3 {[%clk 0:01:59.1]} 17... Be8 {[%clk 0:01:54.4]} 18.
Qg3 {[%clk 0:01:52.3]} 18... Nd4 {[%clk 0:01:51]} 19. Rad1 {[%clk 0:01:48.2]}
19... Nf5 {[%clk 0:01:47.4]} 20. Qe5 {[%clk 0:01:20.2]} 20... Bf8 {[%clk
0:01:26.3]} 21. Rxd8 {[%clk 0:01:16.8]} 21... Rxd8 {[%clk 0:01:21.1]} 22. Re1
{[%clk 0:00:36]} 22... Rc8 {[%clk 0:00:25.5]} 23. Ng5 {[%clk 0:00:15.8]} 23...
Bd7 {[%clk 0:00:14.3]} 24. Nxf7 {[%clk 0:00:12.1]} 24... Rc5 {[%clk 0:00:13.6]}
25. Qf4 {[%clk 0:00:04.7]} 25... Kxf7 {[%clk 0:00:14]} 26. Re5 {[%clk
0:00:04.7]} 26... Rxe5 {[%clk 0:00:13.1]} 27. Bxe5 {[%clk 0:00:04.8]} 27... Ke8
{[%clk 0:00:09.2]} 28. Bc3 {[%clk 0:00:04.4]} 28... Qd6 {[%clk 0:00:07.2]} 29.
Qc1 {[%clk 0:00:03.3]} 29... Qc5 {[%clk 0:00:06.5]} 30. a3 {[%clk 0:00:03.1]}
30... Nd4 {[%clk 0:00:06.7]} 31. Ba2 {[%clk 0:00:02.4]} 31... Ne2 {[%clk
0:00:07.1]} 32. Qe1 {[%clk 0:00:02.5]} 32... Nxc3 {[%clk 0:00:07.1]} 33. bxc3
{[%clk 0:00:03.2]} 33... Qd6 {[%clk 0:00:06.2]} 34. h3 {[%clk 0:00:03]} 34...
Kd8 {[%clk 0:00:06.6]} 35. Bb3 {[%clk 0:00:02.7]} 35... Qxa3 {[%clk 0:00:06.4]}
36. Qe3 {[%clk 0:00:02.9]} 36... Qc5 {[%clk 0:00:06.3]} 37. Qf4 {[%clk 0:00:03]}
37... Bd6 {[%clk 0:00:06.4]} 38. Qg5+ {[%clk 0:00:03]} 38... Kc7 {[%clk
0:00:06.4]} 39. Qxg7 {[%clk 0:00:03.2]} 39... Qe5 {[%clk 0:00:06.5]} 40. Qxe5
{[%clk 0:00:02.1]} 40... Bxe5 {[%clk 0:00:07.4]} 41. g4 {[%clk 0:00:02.5]} 41...
Bxc3 {[%clk 0:00:07.2]} 42. h4 {[%clk 0:00:03]} 42... a5 {[%clk 0:00:07.7]} 43.
Kg2 {[%clk 0:00:03.5]} 43... a4 {[%clk 0:00:08.2]} 44. Ba2 {[%clk 0:00:04.2]}
44... Kd6 {[%clk 0:00:08.4]} 45. g5 {[%clk 0:00:04.8]} 45... e5 {[%clk
0:00:08.7]} 46. Kg3 {[%clk 0:00:05.3]} 46... Bf5 {[%clk 0:00:09]} 47. f4 {[%clk
0:00:05.5]} 47... Bxc2 {[%clk 0:00:08.5]} 48. fxe5+ {[%clk 0:00:05.7]} 48...
Bxe5+ {[%clk 0:00:08.8]} 49. Kg4 {[%clk 0:00:05.9]} 49... b5 {[%clk 0:00:09.3]}
50. h5 {[%clk 0:00:06.1]} 50... b4 {[%clk 0:00:09.8]} 51. g6 {[%clk 0:00:04.9]}
51... hxg6 {[%clk 0:00:10.1]} 52. h6 {[%clk 0:00:05.8]} 52... b3 {[%clk
0:00:09.7]} 0-1

[Event "Late-Titled-Tuesday-Blitz-May-07-2024"]
[Site "Chess.com"]
[Date "2024.05.07"]
[Round "7"]
[White "Axf7"]
[Black "SHIVACalypso"]
[Result "1/2-1/2"]
[WhiteElo "2066"]
[BlackElo "2531"]
[TimeControl "180+1"]
[EndTime "15:17:36 PDT"]
[Termination "Game drawn by repetition"]

1. e4 {[%clk 0:03:00.9]} 1... e5 {[%clk 0:02:56.9]} 2. Nf3 {[%clk 0:03:00.5]}
2... Nc6 {[%clk 0:02:56.8]} 3. d4 {[%clk 0:03:01]} 3... d5 {[%clk 0:02:47.9]} 4.
Bb5 {[%clk 0:02:31.9]} 4... exd4 {[%clk 0:02:24.3]} 5. Nxd4 {[%clk 0:02:29.5]}
5... Bd7 {[%clk 0:02:24.6]} 6. exd5 {[%clk 0:02:27.5]} 6... Nxd4 {[%clk
0:02:24]} 7. Bxd7+ {[%clk 0:02:27.6]} 7... Qxd7 {[%clk 0:02:24.2]} 8. Qxd4
{[%clk 0:02:28.1]} 8... Nf6 {[%clk 0:02:23.4]} 9. c4 {[%clk 0:02:27.1]} 9...
Bb4+ {[%clk 0:02:23.2]} 10. Nc3 {[%clk 0:02:15.1]} 10... c6 {[%clk 0:02:15.6]}
11. O-O {[%clk 0:02:10.3]} 11... O-O {[%clk 0:02:10]} 12. Bg5 {[%clk 0:02:04.4]}
12... Bxc3 {[%clk 0:02:08.7]} 13. bxc3 {[%clk 0:01:58.7]} 13... Ne8 {[%clk
0:02:00.8]} 14. Rfe1 {[%clk 0:01:49.9]} 14... f6 {[%clk 0:01:52.7]} 15. Bf4
{[%clk 0:01:47.8]} 15... Rd8 {[%clk 0:01:53.3]} 16. Rad1 {[%clk 0:01:45.7]}
16... cxd5 {[%clk 0:01:50.4]} 17. cxd5 {[%clk 0:01:45.5]} 17... Nd6 {[%clk
0:01:51]} 18. Bxd6 {[%clk 0:01:40.9]} 18... Qxd6 {[%clk 0:01:51.3]} 19. c4
{[%clk 0:01:41.2]} 19... b6 {[%clk 0:01:51]} 20. Re6 {[%clk 0:01:31.5]} 20...
Qb4 {[%clk 0:01:47.4]} 21. h4 {[%clk 0:01:12.8]} 21... Rc8 {[%clk 0:01:46.3]}
22. Rc6 {[%clk 0:00:43.5]} 22... Rce8 {[%clk 0:01:31]} 23. d6 {[%clk 0:00:39.1]}
23... Rd8 {[%clk 0:01:16.4]} 24. h5 {[%clk 0:00:29.6]} 24... Rd7 {[%clk
0:01:10.5]} 25. h6 {[%clk 0:00:29]} 25... Rfd8 {[%clk 0:01:08.9]} 26. hxg7
{[%clk 0:00:27.3]} 26... Kxg7 {[%clk 0:01:05.4]} 27. Qg4+ {[%clk 0:00:20.6]}
27... Kf7 {[%clk 0:01:04.7]} 28. Qh5+ {[%clk 0:00:19.6]} 28... Kg7 {[%clk
0:01:04.9]} 29. Rd3 {[%clk 0:00:13.9]} 29... Qb1+ {[%clk 0:01:02.4]} 30. Rd1
{[%clk 0:00:11.9]} 30... Qg6 {[%clk 0:00:56.7]} 31. Qxg6+ {[%clk 0:00:05.3]}
31... hxg6 {[%clk 0:00:56.5]} 32. a4 {[%clk 0:00:05]} 32... Kf7 {[%clk
0:00:56.5]} 33. a5 {[%clk 0:00:05.4]} 33... bxa5 {[%clk 0:00:56.5]} 34. c5
{[%clk 0:00:05.9]} 34... Rb8 {[%clk 0:00:52.8]} 35. Ra6 {[%clk 0:00:05.9]} 35...
Rbd8 {[%clk 0:00:45.3]} 36. Rxa5 {[%clk 0:00:05.1]} 36... Ke6 {[%clk 0:00:45.6]}
37. Ra6 {[%clk 0:00:04.7]} 37... Rc8 {[%clk 0:00:43.6]} 38. c6 {[%clk
0:00:03.2]} 38... Rxd6 {[%clk 0:00:43.4]} 39. Rxd6+ {[%clk 0:00:03.2]} 39...
Kxd6 {[%clk 0:00:44.3]} 40. Rxa7 {[%clk 0:00:03]} 40... Rxc6 {[%clk 0:00:42.2]}
41. g3 {[%clk 0:00:03.2]} 41... Ke5 {[%clk 0:00:41.1]} 42. Kg2 {[%clk
0:00:03.5]} 42... Rc3 {[%clk 0:00:41.2]} 43. Rg7 {[%clk 0:00:03.7]} 43... Kf5
{[%clk 0:00:41.4]} 44. Re7 {[%clk 0:00:03.9]} 44... g5 {[%clk 0:00:41.6]} 45.
Re8 {[%clk 0:00:03.9]} 45... Kg4 {[%clk 0:00:37.9]} 46. Re7 {[%clk 0:00:04.2]}
46... f5 {[%clk 0:00:37.1]} 47. Rd7 {[%clk 0:00:04.4]} 47... f4 {[%clk
0:00:36.9]} 48. Rd4 {[%clk 0:00:04.6]} 48... Rc2 {[%clk 0:00:33.6]} 49. gxf4
{[%clk 0:00:04.8]} 49... gxf4 {[%clk 0:00:33.8]} 50. Ra4 {[%clk 0:00:05.3]}
50... Rb2 {[%clk 0:00:32.8]} 51. Rc4 {[%clk 0:00:05.4]} 51... Ra2 {[%clk
0:00:30.6]} 52. Rb4 {[%clk 0:00:05.5]} 52... Rc2 {[%clk 0:00:30.8]} 53. Ra4
{[%clk 0:00:05.7]} 53... Rd2 {[%clk 0:00:31.2]} 54. Rb4 {[%clk 0:00:06]} 54...
Re2 {[%clk 0:00:30.8]} 55. Ra4 {[%clk 0:00:06.2]} 55... Rb2 {[%clk 0:00:31.2]}
56. Rc4 {[%clk 0:00:06.2]} 56... Kf5 {[%clk 0:00:31.8]} 57. Kf3 {[%clk
0:00:05.9]} 57... Rb3+ {[%clk 0:00:31.2]} 58. Kg2 {[%clk 0:00:06.1]} 58... Ke5
{[%clk 0:00:31.5]} 59. Ra4 {[%clk 0:00:05.4]} 59... Kf5 {[%clk 0:00:31.2]} 60.
Rc4 {[%clk 0:00:05.4]} 60... Kg4 {[%clk 0:00:31.4]} 61. Ra4 {[%clk 0:00:04.7]}
61... Rb2 {[%clk 0:00:31.5]} 1/2-1/2

[Event "Late-Titled-Tuesday-Blitz-May-07-2024"]
[Site "Chess.com"]
[Date "2024.05.07"]
[Round "7"]
[White "Byniolus"]
[Black "LiemLe"]
[Result "0-1"]
[WhiteElo "2830"]
[BlackElo "3065"]
[TimeControl "180+1"]
[EndTime "15:17:44 PDT"]
[Termination "LiemLe won by checkmate"]

1. d4 {[%clk 0:02:57.5]} 1... Nf6 {[%clk 0:03:00]} 2. Nf3 {[%clk 0:02:57.7]}
2... g6 {[%clk 0:03:00.6]} 3. Bf4 {[%clk 0:02:57.7]} 3... Bg7 {[%clk 0:03:00.8]}
4. e3 {[%clk 0:02:58.4]} 4... O-O {[%clk 0:02:59.4]} 5. Be2 {[%clk 0:02:58.8]}
5... d6 {[%clk 0:03:00]} 6. h3 {[%clk 0:02:59.1]} 6... c5 {[%clk 0:02:58.1]} 7.
c3 {[%clk 0:02:59.2]} 7... Qb6 {[%clk 0:02:57.2]} 8. Qb3 {[%clk 0:02:59.3]} 8...
Be6 {[%clk 0:02:46.5]} 9. Qxb6 {[%clk 0:02:59.5]} 9... axb6 {[%clk 0:02:47.4]}
10. a3 {[%clk 0:03:00.4]} 10... Bd5 {[%clk 0:02:35.1]} 11. Nbd2 {[%clk
0:03:00.1]} 11... Bc6 {[%clk 0:02:35.3]} 12. O-O {[%clk 0:02:59.8]} 12... Nbd7
{[%clk 0:02:35.2]} 13. Rfe1 {[%clk 0:02:57.8]} 13... b5 {[%clk 0:02:26.3]} 14.
Bd3 {[%clk 0:02:54.7]} 14... Nd5 {[%clk 0:01:40.6]} 15. Bh2 {[%clk 0:02:52.4]}
15... f5 {[%clk 0:01:40.6]} 16. e4 {[%clk 0:02:31.8]} 16... fxe4 {[%clk
0:01:41.5]} 17. Bxe4 {[%clk 0:02:32.5]} 17... Rfe8 {[%clk 0:01:24.3]} 18. Rad1
{[%clk 0:02:19.5]} 18... cxd4 {[%clk 0:01:21.6]} 19. Nxd4 {[%clk 0:02:15.2]}
19... Bxd4 {[%clk 0:01:20.8]} 20. cxd4 {[%clk 0:02:16.1]} 20... N7f6 {[%clk
0:01:15.5]} 21. Bf3 {[%clk 0:02:12]} 21... b4 {[%clk 0:01:09.4]} 22. axb4 {[%clk
0:02:04.5]} 22... Nxb4 {[%clk 0:01:10.3]} 23. Re3 {[%clk 0:02:05]} 23... Nc2
{[%clk 0:00:56.4]} 24. Rd3 {[%clk 0:01:57.8]} 24... Bb5 {[%clk 0:00:56.9]} 25.
Rb3 {[%clk 0:01:36.8]} 25... Nxd4 {[%clk 0:00:57.2]} 26. Rb4 {[%clk 0:01:36.6]}
26... Ra4 {[%clk 0:00:50.6]} 27. Rxa4 {[%clk 0:01:19.3]} 27... Bxa4 {[%clk
0:00:51.5]} 28. Ra1 {[%clk 0:01:19.8]} 28... Nxf3+ {[%clk 0:00:46.7]} 29. Nxf3
{[%clk 0:01:20.7]} 29... Bc6 {[%clk 0:00:44.7]} 30. Nd4 {[%clk 0:01:20.5]} 30...
Kf7 {[%clk 0:00:44.4]} 31. Ra7 {[%clk 0:01:17.5]} 31... Bd5 {[%clk 0:00:44.4]}
32. Bf4 {[%clk 0:01:15]} 32... e5 {[%clk 0:00:43.6]} 33. Nb5 {[%clk 0:01:10.7]}
33... exf4 {[%clk 0:00:41.5]} 34. Nxd6+ {[%clk 0:01:10.9]} 34... Ke6 {[%clk
0:00:38.5]} 35. Nxe8 {[%clk 0:01:11.8]} 35... Nxe8 {[%clk 0:00:38.9]} 36. h4
{[%clk 0:01:10]} 36... Nd6 {[%clk 0:00:35]} 37. Ra4 {[%clk 0:01:06.3]} 37... Ke5
{[%clk 0:00:32.1]} 38. g4 {[%clk 0:01:02.2]} 38... fxg3 {[%clk 0:00:30.4]} 39.
fxg3 {[%clk 0:01:03.1]} 39... b5 {[%clk 0:00:17.4]} 40. Ra7 {[%clk 0:00:58.5]}
40... h5 {[%clk 0:00:17.9]} 41. Rg7 {[%clk 0:00:53.6]} 41... Be4 {[%clk
0:00:17.9]} 42. Kf2 {[%clk 0:00:53.8]} 42... Bf5 {[%clk 0:00:17.5]} 43. Rc7
{[%clk 0:00:52.7]} 43... Kd4 {[%clk 0:00:16.6]} 44. Kf3 {[%clk 0:00:52.5]} 44...
Nc4 {[%clk 0:00:11.5]} 45. b4 {[%clk 0:00:52.7]} 45... Ne5+ {[%clk 0:00:09.7]}
46. Kf4 {[%clk 0:00:52.6]} 46... Nd3+ {[%clk 0:00:10.2]} 47. Kg5 {[%clk
0:00:51.7]} 47... Nxb4 {[%clk 0:00:11.1]} 48. Rb7 {[%clk 0:00:44]} 48... Bd3
{[%clk 0:00:10.8]} 49. g4 {[%clk 0:00:41.5]} 49... hxg4 {[%clk 0:00:11.7]} 50.
Kxg4 {[%clk 0:00:42.4]} 50... Nd5 {[%clk 0:00:12]} 51. Kg5 {[%clk 0:00:42.4]}
51... b4 {[%clk 0:00:12.2]} 52. h5 {[%clk 0:00:34.9]} 52... gxh5 {[%clk
0:00:13.1]} 53. Kxh5 {[%clk 0:00:35.8]} 53... Kc3 {[%clk 0:00:13]} 54. Kg4
{[%clk 0:00:35.2]} 54... b3 {[%clk 0:00:13.2]} 55. Rxb3+ {[%clk 0:00:35.2]}
55... Kxb3 {[%clk 0:00:14.1]} 56. Kg5 {[%clk 0:00:35.8]} 56... Kc4 {[%clk
0:00:14.6]} 57. Kg4 {[%clk 0:00:36.7]} 57... Kd4 {[%clk 0:00:15.2]} 58. Kg5
{[%clk 0:00:37.2]} 58... Ke5 {[%clk 0:00:15.8]} 59. Kh6 {[%clk 0:00:37.1]} 59...
Kf6 {[%clk 0:00:15.8]} 60. Kh5 {[%clk 0:00:37.7]} 60... Ne7 {[%clk 0:00:15.6]}
61. Kh6 {[%clk 0:00:37]} 61... Be2 {[%clk 0:00:14.6]} 62. Kh7 {[%clk 0:00:36.8]}
62... Nf5 {[%clk 0:00:14]} 63. Kg8 {[%clk 0:00:36.8]} 63... Nh6+ {[%clk
0:00:12]} 64. Kf8 {[%clk 0:00:37.7]} 64... Nf7 {[%clk 0:00:11.9]} 65. Kg8 {[%clk
0:00:37.4]} 65... Bd3 {[%clk 0:00:11.4]} 66. Kf8 {[%clk 0:00:38.3]} 66... Bh7
{[%clk 0:00:12.1]} 67. Ke8 {[%clk 0:00:38.6]} 67... Ne5 {[%clk 0:00:12.8]} 68.
Kf8 {[%clk 0:00:38.9]} 68... Nd7+ {[%clk 0:00:12.9]} 69. Ke8 {[%clk 0:00:39.2]}
69... Ke6 {[%clk 0:00:13.8]} 70. Kd8 {[%clk 0:00:39.6]} 70... Kd6 {[%clk
0:00:14.4]} 71. Ke8 {[%clk 0:00:40.5]} 71... Bg6+ {[%clk 0:00:14.8]} 72. Kd8
{[%clk 0:00:41.4]} 72... Nc5 {[%clk 0:00:14.5]} 73. Kc8 {[%clk 0:00:41.6]} 73...
Bf7 {[%clk 0:00:11.9]} 74. Kd8 {[%clk 0:00:41]} 74... Nb7+ {[%clk 0:00:12.3]}
75. Kc8 {[%clk 0:00:41.3]} 75... Kc6 {[%clk 0:00:13.2]} 76. Kb8 {[%clk
0:00:41.6]} 76... Kb6 {[%clk 0:00:13.9]} 77. Kc8 {[%clk 0:00:40.9]} 77... Be6+
{[%clk 0:00:14.6]} 78. Kb8 {[%clk 0:00:41.8]} 78... Nc5 {[%clk 0:00:14.2]} 79.
Ka8 {[%clk 0:00:41.4]} 79... Bd7 {[%clk 0:00:14.2]} 80. Kb8 {[%clk 0:00:42.3]}
80... Na6+ {[%clk 0:00:14.8]} 81. Ka8 {[%clk 0:00:42.6]} 81... Bc6# {[%clk
0:00:15.7]} 0-1

[Event "Late-Titled-Tuesday-Blitz-May-07-2024"]
[Site "Chess.com"]
[Date "2024.05.07"]
[Round "7"]
[White "ccccvhhhj"]
[Black "PapaieDudu"]
[Result "1-0"]
[WhiteElo "2488"]
[BlackElo "2363"]
[TimeControl "180+1"]
[EndTime "15:17:45 PDT"]
[Termination "ccccvhhhj won by checkmate"]

1. e4 {[%clk 0:03:00.9]} 1... c5 {[%clk 0:02:45.6]} 2. Nf3 {[%clk 0:03:00.3]}
2... d6 {[%clk 0:02:45]} 3. d4 {[%clk 0:03:00.9]} 3... cxd4 {[%clk 0:02:45.9]}
4. Nxd4 {[%clk 0:03:01.7]} 4... Nf6 {[%clk 0:02:46.4]} 5. Nc3 {[%clk 0:03:02.5]}
5... a6 {[%clk 0:02:47]} 6. Rg1 {[%clk 0:03:03.2]} 6... b5 {[%clk 0:02:45.9]} 7.
g4 {[%clk 0:03:02.9]} 7... h6 {[%clk 0:02:46.4]} 8. h4 {[%clk 0:03:02.8]} 8...
Bb7 {[%clk 0:02:45.7]} 9. f3 {[%clk 0:02:53.5]} 9... d5 {[%clk 0:02:42.5]} 10.
g5 {[%clk 0:02:52.8]} 10... hxg5 {[%clk 0:02:40.8]} 11. hxg5 {[%clk 0:02:53.7]}
11... Nh5 {[%clk 0:02:22.2]} 12. exd5 {[%clk 0:02:52.4]} 12... b4 {[%clk
0:02:17.3]} 13. Ne4 {[%clk 0:02:42.9]} 13... Bxd5 {[%clk 0:02:11.2]} 14. g6
{[%clk 0:02:41.5]} 14... e5 {[%clk 0:02:07.3]} 15. gxf7+ {[%clk 0:02:41.2]}
15... Bxf7 {[%clk 0:01:58.2]} 16. Nf5 {[%clk 0:02:33.9]} 16... Qxd1+ {[%clk
0:01:56.4]} 17. Kxd1 {[%clk 0:02:34.8]} 17... Nc6 {[%clk 0:01:48.6]} 18. Ned6+
{[%clk 0:02:23.4]} 18... Bxd6 {[%clk 0:01:47.8]} 19. Nxd6+ {[%clk 0:02:24.3]}
19... Ke7 {[%clk 0:01:47.6]} 20. Nxf7 {[%clk 0:02:25.2]} 20... Kxf7 {[%clk
0:01:46.4]} 21. Bc4+ {[%clk 0:02:25.6]} 21... Kf8 {[%clk 0:01:37.2]} 22. Be3
{[%clk 0:02:23.9]} 22... Nd4 {[%clk 0:01:27.6]} 23. c3 {[%clk 0:02:11.6]} 23...
Nxf3 {[%clk 0:01:07.7]} 24. Rf1 {[%clk 0:01:56.5]} 24... e4 {[%clk 0:01:07.2]}
25. Kc2 {[%clk 0:01:51.4]} 25... Ng3 {[%clk 0:00:56.7]} 26. Rf2 {[%clk
0:01:41.4]} 26... Nf5 {[%clk 0:00:49.5]} 27. Bc5+ {[%clk 0:01:37.1]} 27... Ke8
{[%clk 0:00:46.3]} 28. cxb4 {[%clk 0:01:27.6]} 28... Rc8 {[%clk 0:00:25.3]} 29.
Bxa6 {[%clk 0:01:26.7]} 29... Rc7 {[%clk 0:00:24.1]} 30. Bb5+ {[%clk 0:01:26.7]}
30... Kf7 {[%clk 0:00:24.2]} 31. Bc4+ {[%clk 0:01:24.4]} 31... Kg6 {[%clk
0:00:23.3]} 32. Kc3 {[%clk 0:00:47.9]} 32... Kf6 {[%clk 0:00:20.9]} 33. a4
{[%clk 0:00:44.4]} 33... g5 {[%clk 0:00:19.3]} 34. a5 {[%clk 0:00:45]} 34... g4
{[%clk 0:00:19]} 35. a6 {[%clk 0:00:45.8]} 35... e3 {[%clk 0:00:18.2]} 36. Rg2
{[%clk 0:00:42.7]} 36... g3 {[%clk 0:00:14.6]} 37. a7 {[%clk 0:00:42.6]} 37...
Ke5 {[%clk 0:00:14.4]} 38. Rf1 {[%clk 0:00:32]} 38... Nd2 {[%clk 0:00:12.6]} 39.
Rxf5+ {[%clk 0:00:20.1]} 39... Kxf5 {[%clk 0:00:12.8]} 40. Rxg3 {[%clk
0:00:20.8]} 40... Ne4+ {[%clk 0:00:09.8]} 41. Kb3 {[%clk 0:00:19.4]} 41... Nxg3
{[%clk 0:00:10.7]} 42. Bxe3 {[%clk 0:00:19.8]} 42... Ne4 {[%clk 0:00:10.4]} 43.
Bd5 {[%clk 0:00:17.7]} 43... Rcc8 {[%clk 0:00:07.2]} 44. b5 {[%clk 0:00:17.7]}
44... Rhd8 {[%clk 0:00:07.2]} 45. Bb7 {[%clk 0:00:16.6]} 45... Ra8 {[%clk
0:00:06.1]} 46. b6 {[%clk 0:00:16.6]} 46... Rd3+ {[%clk 0:00:04.6]} 47. Kb4
{[%clk 0:00:16.1]} 47... Rdd8 {[%clk 0:00:02.5]} 48. Bxa8 {[%clk 0:00:15.2]}
48... Rxa8 {[%clk 0:00:02.9]} 49. b7 {[%clk 0:00:15.9]} 49... Rxa7 {[%clk
0:00:02.5]} 50. Bxa7 {[%clk 0:00:16.8]} 50... Nf6 {[%clk 0:00:01.4]} 51. b8=Q
{[%clk 0:00:17.1]} 51... Nd5+ {[%clk 0:00:01.2]} 52. Kb3 {[%clk 0:00:17.7]}
52... Ne7 {[%clk 0:00:01.3]} 53. Qf8+ {[%clk 0:00:17.7]} 53... Ke6 {[%clk
0:00:01.7]} 54. Qf1 {[%clk 0:00:17.7]} 54... Nd5 {[%clk 0:00:02]} 55. Bd4 {[%clk
0:00:17.8]} 55... Kd7 {[%clk 0:00:02.1]} 56. Qf7+ {[%clk 0:00:17.6]} 56... Kc6
{[%clk 0:00:02.6]} 57. Qe6+ {[%clk 0:00:18.2]} 57... Kc7 {[%clk 0:00:03]} 58.
Qxd5 {[%clk 0:00:17.3]} 58... Kc8 {[%clk 0:00:03.7]} 59. Qc6+ {[%clk 0:00:17]}
59... Kd8 {[%clk 0:00:03.9]} 60. Bf6# {[%clk 0:00:17.1]} 1-0